bitfinex-derivatives/quotes_BTCF0:USTF0_20240923
["timestamp","ask_amount","ask_price","bid_price","bid_amount"]
[1727122039400,0.001,63358.0,63357.0,0.57638721]
[1727122040390,0.001,63358.0,63357.0,0.551713]
[1727122041698,0.079912,63358.0,63357.0,0.441713]
[1727122041900,0.001,63358.0,63357.0,0.551713]
[1727122042103,0.189912,63358.0,63357.0,0.3628]
[1727122042291,0.268824,63358.0,63357.0,0.3628]
[1727122042808,0.72400393,63358.0,63357.0,0.002]
[1727122043298,0.80267276,63358.0,63357.0,0.04931396]
[1727122043492,0.708536,63358.0,63357.0,0.04925122]
[1727122043692,0.708536,63358.0,63357.0,0.002]
[1727122044096,0.708536,63358.0,63357.0,0.04925122]
[1727122044693,1.182056,63358.0,63357.0,0.0492547]
[1727122044891,1.782056,63358.0,63357.0,0.002]
[1727122045091,0.078917,63354.0,63353.0,0.0472547]
[1727122045297,0.188917,63354.0,63353.0,0.0472547]
[1727122045501,0.157836,63353.0,63352.0,0.0472547]
[1727122045701,0.078921,63351.0,63350.0,0.06314511]
[1727122046794,0.078922,63350.0,63349.0,0.11]
[1727122048600,0.078922,63350.0,63349.0,0.111]
[1727122048907,0.077922,63350.0,63349.0,0.111]
[1727122049199,0.080922,63350.0,63349.0,0.112]
[1727122049698,0.077922,63350.0,63349.0,0.111]
[1727122049898,0.080922,63350.0,63349.0,0.112]
[1727122052798,0.080922,63350.0,63349.0,0.190923]
[1727122058508,0.10651146,63350.0,63349.0,0.190923]
[1727122059717,0.003,63350.0,63349.0,0.269846]
[1727122060796,0.003,63350.0,63349.0,1.343406]
[1727122061309,0.003,63350.0,63349.0,0.743406]
[1727122062506,0.003,63350.0,63349.0,0.76808343]
[1727122062711,0.003,63350.0,63349.0,0.743406]
[1727122063010,0.003,63350.0,63349.0,0.21559896]
[1727122063910,0.081922,63350.0,63349.0,0.21559896]
[1727122064415,0.081922,63350.0,63349.0,0.190923]
[1727122066313,0.081922,63350.0,63349.0,0.21560065]
[1727122066515,0.081922,63350.0,63349.0,0.3167083]
[1727122071409,0.081922,63350.0,63349.0,0.31679865]
[1727122072426,0.081922,63350.0,63349.0,0.31679884]
[1727122075523,0.081922,63350.0,63349.0,0.292121]
[1727122075823,0.081922,63350.0,63349.0,0.31679896]
[1727122077525,0.081922,63350.0,63349.0,0.182121]
[1727122077723,0.160844,63350.0,63349.0,0.103198]
[1727122078428,0.160844,63350.0,63349.0,0.213198]
[1727122079324,0.081922,63350.0,63349.0,0.292121]
[1727122079929,0.081922,63350.0,63349.0,0.182121]
[1727122080168,0.081922,63350.0,63349.0,0.292121]
[1727122080725,0.081922,63350.0,63349.0,0.29212463]
[1727122081435,0.10751083,63350.0,63349.0,0.190923]
[1727122084424,0.18643283,63350.0,63349.0,0.002]
[1727122084626,0.66731366,63350.0,63349.0,0.002]
[1727122084831,0.078928,63345.0,63344.0,0.0037]
[1727122085021,0.078933,63342.0,63340.0,0.0037]
[1727122085223,0.078933,63342.0,63341.0,0.188933]
[1727122085418,0.10452465,63342.0,63341.0,0.188933]
[1727122085618,0.10452465,63342.0,63341.0,0.21361394]
[1727122088435,0.078933,63342.0,63341.0,0.31494549]
[1727122088622,0.078933,63342.0,63341.0,0.23601249]
[1727122088823,0.157866,63342.0,63341.0,0.22066257]
[1727122089030,0.157866,63342.0,63341.0,0.10133147]
[1727122089433,0.078933,63341.0,63340.0,0.07887787]
[1727122089736,0.078933,63341.0,63340.0,0.18029478]
[1727122090733,0.078933,63341.0,63340.0,0.18129478]
[1727122091327,0.078933,63341.0,63340.0,0.001]
[1727122091526,0.078933,63341.0,63340.0,0.07987787]
[1727122091730,0.078933,63341.0,63340.0,0.001]
[1727122091731,0.157866,63341.0,63340.0,0.001]
[1727122092231,0.161866,63341.0,63340.0,0.001]
[1727122092436,0.161866,63341.0,63340.0,0.002]
[1727122093028,0.157866,63341.0,63340.0,0.001]
[1727122093230,0.161866,63341.0,63340.0,0.002]
[1727122093839,0.082933,63341.0,63340.0,0.002]
[1727122099443,0.082933,63341.0,63340.0,0.080935]
[1727122099641,0.004,63341.0,63340.0,0.128207]
[1727122099838,0.08262,63353.0,63345.0,0.078926]
[1727122099839,0.078928,63346.0,63345.0,0.078926]
[1727122100040,0.078924,63349.0,63348.0,0.078923]
[1727122100241,0.078924,63349.0,63348.0,0.188923]
[1727122101243,0.078924,63349.0,63348.0,0.23618335]
[1727122103540,0.078924,63349.0,63348.0,0.28988851]
[1727122103849,0.078919,63355.0,63354.0,0.078917]
[1727122104039,0.078919,63355.0,63354.0,0.188917]
[1727122105437,0.078919,63355.0,63354.0,0.189917]
[1727122106038,0.078919,63355.0,63354.0,0.36944018]
[1727122106237,0.078919,63355.0,63354.0,0.26869093]
[1727122106439,0.078919,63355.0,63354.0,0.26969093]
[1727122106757,0.078919,63355.0,63354.0,0.37041688]
[1727122107338,0.078919,63355.0,63354.0,0.26969093]
[1727122108548,0.078919,63355.0,63354.0,0.190917]
[1727122112867,0.08497537,63362.0,63357.0,0.07891]
[1727122112868,0.078912,63358.0,63357.0,0.07891]
[1727122113062,0.078912,63358.0,63357.0,0.18891]
[1727122114162,0.078912,63358.0,63357.0,0.18991]
[1727122115160,0.078912,63358.0,63357.0,0.19091]
[1727122115463,0.082604,63365.0,63364.0,0.078905]
[1727122115464,0.0037,63365.0,63364.0,0.078905]
[1727122115645,0.078901,63367.0,63366.0,0.078902]
[1727122115844,0.0037,63372.0,63370.0,0.078896]
[1727122115845,0.078897,63371.0,63370.0,0.078896]
[1727122116055,0.078897,63371.0,63370.0,0.188896]
[1727122117348,0.078897,63371.0,63370.0,0.189896]
[1727122118564,0.078897,63371.0,63370.0,0.190896]
[1727122121162,0.078893,63374.0,63373.0,0.078892]
[1727122121363,0.078893,63374.0,63373.0,0.188892]
[1727122121568,0.078889,63377.0,63376.0,0.078889]
[1727122121875,0.078889,63377.0,63376.0,0.188889]
[1727122124055,0.078889,63377.0,63376.0,0.189889]
[1727122124258,0.078889,63377.0,63376.0,0.112]
[1727122124458,0.078889,63377.0,63376.0,0.002]
[1727122127370,0.157778,63377.0,63376.0,0.002]
[1727122128055,0.157778,63377.0,63376.0,0.08089]
[1727122128570,0.157778,63377.0,63376.0,0.002]
[1727122133366,0.157778,63377.0,63376.0,0.04923012]
[1727122133764,0.157778,63377.0,63376.0,0.002]
[1727122137665,0.157778,63377.0,63376.0,0.112]
[1727122139360,0.18335713,63377.0,63376.0,0.112]
[1727122140171,0.10446813,63377.0,63376.0,0.19089]
[1727122140657,0.10446813,63377.0,63376.0,0.112]
[1727122140862,0.078889,63377.0,63376.0,0.002]
[1727122141057,0.157778,63377.0,63376.0,0.002]
[1727122141263,0.157778,63377.0,63376.0,0.0649735]
[1727122141460,0.078889,63377.0,63376.0,0.0649735]
[1727122142361,0.157778,63377.0,63376.0,0.06499142]
[1727122142560,0.078889,63377.0,63376.0,0.06499142]
[1727122143059,0.157778,63377.0,63376.0,0.06499142]
[1727122143267,0.157778,63377.0,63376.0,0.002]
[1727122143470,0.078889,63377.0,63376.0,0.002]
[1727122144171,0.157778,63377.0,63376.0,0.002]
[1727122145269,0.157778,63377.0,63376.0,0.10231181]
[1727122146263,0.157778,63377.0,63376.0,0.18118253]
[1727122146770,0.157778,63377.0,63376.0,0.08087072]
[1727122147167,0.157778,63377.0,63376.0,0.002]
[1727122148265,0.157778,63377.0,63376.0,0.08087072]
[1727122148864,0.157778,63377.0,63376.0,0.002]
[1727122148865,0.22558898,63377.0,63376.0,0.002]
[1727122150670,0.33569791,63377.0,63376.0,0.002]
[1727122150866,0.22558898,63377.0,63376.0,0.002]
[1727122151176,0.33569791,63377.0,63376.0,0.002]
[1727122154378,0.33574798,63377.0,63376.0,0.002]
[1727122155070,0.22563905,63377.0,63376.0,0.002]
[1727122155973,0.157778,63377.0,63376.0,0.08087072]
[1727122161489,0.157778,63377.0,63376.0,0.18120592]
[1727122161678,0.157778,63377.0,63376.0,0.08087072]
[1727122163779,0.157778,63377.0,63376.0,0.18116741]
[1727122164081,0.157778,63377.0,63376.0,0.06512377]
[1727122164283,0.078889,63377.0,63376.0,0.25401377]
[1727122164490,0.078883,63382.0,63376.0,0.25401377]
[1727122164491,0.0037,63384.0,63376.0,0.112]
[1727122164688,0.1769046,63386.0,63376.0,0.112]
[1727122164689,0.078886,63380.0,63379.0,0.06312123]
[1727122164995,0.078886,63380.0,63379.0,0.078886]
[1727122165686,0.00606752,63387.0,63379.0,0.11]
[1727122165995,0.00236752,63387.0,63385.0,0.11]
[1727122166690,0.07888,63384.0,63383.0,0.06311012]
[1727122166889,0.26776,63384.0,63383.0,0.06311012]
[1727122167105,0.078881,63383.0,63382.0,0.06311012]
[1727122168180,0.078881,63383.0,63382.0,0.06411012]
[1727122168590,0.078881,63383.0,63382.0,0.001]
[1727122168893,0.078881,63383.0,63382.0,0.002]
[1727122171089,0.078884,63381.0,63380.0,0.28386724]
[1727122171389,0.25295132,63381.0,63380.0,0.28386724]
[1727122172392,0.25295132,63381.0,63380.0,0.28486724]
[1727122173495,0.25395132,63381.0,63380.0,0.28586724]
[1727122173794,0.25166581,63381.0,63380.0,0.28586724]
[1727122175695,0.29560258,63381.0,63380.0,0.28586724]
[1727122175995,0.39307267,63381.0,63380.0,0.28586724]
[1727122176388,0.39307267,63381.0,63380.0,0.002]
[1727122176902,0.33054981,63381.0,63380.0,0.002]
[1727122178502,0.33053809,63381.0,63380.0,0.002]
[1727122178796,0.23307837,63381.0,63380.0,0.002]
[1727122179002,0.158768,63381.0,63380.0,0.06511012]
[1727122180893,0.0037,63391.0,63388.0,0.078875]
[1727122181199,0.078868,63394.0,63388.0,0.4708]
[1727122181402,0.078868,63394.0,63393.0,0.17299908]
[1727122181700,0.078868,63394.0,63393.0,0.17299819]
[1727122181887,0.078868,63394.0,63393.0,0.25186719]
[1727122182401,0.078868,63394.0,63393.0,0.188869]
[1727122182897,0.078866,63396.0,63394.0,0.078866]
[1727122183103,0.078866,63396.0,63395.0,0.188866]
[1727122183598,0.078866,63396.0,63395.0,0.23607476]
[1727122184193,0.078866,63396.0,63395.0,0.23707476]
[1727122185396,0.078866,63396.0,63395.0,0.189866]
[1727122186189,0.12835238,63396.0,63395.0,0.189866]
[1727122186393,0.1965449,63396.0,63395.0,0.189866]
[1727122186594,0.1965449,63396.0,63395.0,0.190866]
[1727122187398,0.14705852,63396.0,63395.0,0.190866]
[1727122187599,0.19652592,63396.0,63395.0,0.11195268]
[1727122188000,0.14705852,63396.0,63395.0,0.11195268]
[1727122188209,0.06819252,63396.0,63395.0,0.19081868]
[1727122194013,0.078863,63398.0,63397.0,0.078864]
[1727122194212,0.078863,63398.0,63397.0,0.12601811]
[1727122195215,0.078863,63398.0,63397.0,0.12701811]
[1727122195439,0.078863,63398.0,63397.0,0.04815411]
[1727122195620,0.078863,63398.0,63397.0,0.0481579]
[1727122196416,0.078863,63398.0,63397.0,0.0491579]
[1727122196803,0.078863,63398.0,63397.0,0.04915727]
[1727122201113,0.1044335,63398.0,63397.0,0.002]
[1727122201503,0.1463918,63398.0,63397.0,0.002]
[1727122205613,0.18863798,63398.0,63397.0,0.002]
[1727122205818,0.33502978,63398.0,63397.0,0.002]
[1727122207218,0.2252548,63398.0,63397.0,0.002]
[1727122207521,0.25616678,63398.0,63397.0,0.002]
[1727122208114,0.078863,63398.0,63397.0,0.002]
[1727122210415,0.078863,63398.0,63397.0,0.10251335]
[1727122210919,0.078863,63398.0,63397.0,0.1025134]
[1727122215530,0.078863,63398.0,63397.0,0.10249684]
[1727122216218,0.078863,63398.0,63397.0,0.002]
[1727122223236,0.11654835,63398.0,63397.0,0.07982182]
[1727122223545,0.06766956,63398.0,63397.0,0.07982182]
[1727122223835,0.11013279,63399.0,63398.0,0.078862]
[1727122224141,0.20474146,63404.0,63398.0,0.078862]
[1727122224142,0.24296377,63400.0,63399.0,0.078861]
[1727122224341,0.1170901,63400.0,63399.0,0.237961]
[1727122224935,0.09152265,63400.0,63399.0,0.237961]
[1727122225138,0.12587434,63402.0,63401.0,0.078859]
[1727122225633,0.12587434,63402.0,63399.0,0.1591]
[1727122225634,0.12587434,63403.0,63402.0,0.078857]
[1727122225837,0.21734903,63403.0,63402.0,0.188857]
[1727122226140,0.24291632,63403.0,63402.0,0.188857]
[1727122226327,0.21734903,63403.0,63402.0,0.188857]
[1727122226526,0.24291632,63403.0,63402.0,0.188857]
[1727122227437,0.11704198,63403.0,63402.0,0.188857]
[1727122227941,0.11704198,63403.0,63402.0,0.189857]
[1727122227942,0.09147469,63403.0,63402.0,0.189857]
[1727122228125,0.21741957,63404.0,63403.0,0.078856]
[1727122228330,0.2174186,63404.0,63403.0,0.078856]
[1727122228643,0.11711137,63404.0,63403.0,0.078856]
[1727122229139,0.09154426,63404.0,63403.0,0.078856]
[1727122229535,0.09154426,63404.0,63403.0,0.079856]
[1727122229729,0.11706556,63404.0,63403.0,0.079856]
[1727122230440,0.11706556,63404.0,63403.0,0.080856]
[1727122231231,0.078855,63405.0,63403.0,0.080856]
[1727122231432,0.078855,63405.0,63404.0,0.06300092]
[1727122231841,0.078855,63405.0,63404.0,0.14185592]
[1727122232626,0.078855,63405.0,63404.0,0.14285592]
[1727122233436,0.078855,63405.0,63404.0,0.079855]
[1727122234433,0.078855,63405.0,63404.0,0.080855]
[1727122235939,0.439649,63409.0,63404.0,0.002]
[1727122236245,0.439649,63409.0,63408.0,0.11]
[1727122236839,0.439649,63409.0,63408.0,0.18885]
[1727122238247,0.55679684,63409.0,63408.0,0.111]
[1727122238642,0.55679684,63409.0,63408.0,0.112]
[1727122239649,0.55678787,63409.0,63408.0,0.112]
[1727122241541,0.68266221,63409.0,63408.0,0.112]
[1727122241931,0.55678787,63409.0,63408.0,0.112]
[1727122242549,0.68266221,63409.0,63408.0,0.112]
[1727122242749,0.55678787,63409.0,63408.0,0.112]
[1727122245243,0.68266221,63409.0,63408.0,0.112]
[1727122245645,0.32186221,63409.0,63408.0,0.112]
[1727122246040,0.24301321,63409.0,63408.0,0.112]
[1727122246246,0.11713887,63409.0,63408.0,0.19085]
[1727122246445,0.09157207,63409.0,63408.0,0.19085]
[1727122246648,0.11713887,63409.0,63408.0,0.23885]
[1727122246951,0.10991977,63411.0,63410.0,0.078847]
[1727122247144,0.10991977,63411.0,63410.0,0.188847]
[1727122247958,0.15267065,63411.0,63410.0,0.188847]
[1727122248149,0.13548357,63411.0,63410.0,0.188847]
[1727122248355,0.15267065,63411.0,63410.0,0.188847]
[1727122248553,0.25708045,63411.0,63410.0,0.078847]
[1727122248757,0.25708045,63411.0,63410.0,0.188847]
[1727122249553,0.25709411,63411.0,63410.0,0.188847]
[1727122249855,0.14716068,63411.0,63410.0,0.188847]
[1727122250156,0.25709312,63411.0,63410.0,0.188847]
[1727122250347,0.25709341,63411.0,63410.0,0.188847]
[1727122250550,0.14716068,63411.0,63410.0,0.188847]
[1727122251056,0.06831468,63411.0,63410.0,0.188847]
[1727122251441,0.11792868,63411.0,63410.0,0.188847]
[1727122251944,0.09236488,63411.0,63410.0,0.188847]
[1727122252145,0.11792868,63411.0,63410.0,0.188847]
[1727122252756,0.078843,63414.0,63413.0,0.078844]
[1727122252946,0.078843,63414.0,63413.0,0.188844]
[1727122254348,0.078843,63414.0,63413.0,0.189844]
[1727122255148,0.078843,63414.0,63413.0,0.190844]
[1727122255350,0.078839,63417.0,63416.0,0.07884]
[1727122255549,0.078839,63417.0,63416.0,0.18884]
[1727122256759,0.078839,63417.0,63416.0,0.18984]
[1727122257650,0.078839,63417.0,63416.0,0.19084]
[1727122257851,0.078834,63421.0,63416.0,0.112]
[1727122258053,0.078834,63421.0,63420.0,0.11]
[1727122259145,0.078834,63421.0,63420.0,0.188835]
[1727122259350,0.078834,63421.0,63420.0,0.189835]
[1727122259659,0.439629,63425.0,63421.0,0.078833]
[1727122259863,0.439629,63425.0,63424.0,0.11]
[1727122260861,0.3608,63425.0,63424.0,0.11]
[1727122261358,0.3608,63425.0,63424.0,0.18883]
[1727122261553,0.3608,63425.0,63424.0,0.18983]
[1727122261861,0.3608,63425.0,63424.0,0.19083]
[1727122264864,0.078824,63429.0,63426.0,0.078827]
[1727122265050,0.078824,63429.0,63428.0,0.11]
[1727122267965,0.078824,63429.0,63428.0,0.111]
[1727122268159,0.078824,63429.0,63428.0,0.112]
[1727122270476,0.078824,63429.0,63428.0,0.111]
[1727122270666,0.078824,63429.0,63428.0,0.112]
[1727122280474,0.078824,63429.0,63428.0,0.190825]
[1727122280773,0.078824,63429.0,63428.0,0.189825]
[1727122281674,0.078824,63429.0,63428.0,0.188825]
[1727122283275,0.078824,63429.0,63428.0,0.10993263]
[1727122283464,0.1977082,63429.0,63428.0,0.11]
[1727122283664,0.25481253,63429.0,63428.0,0.11]
[1727122284167,0.19860671,63429.0,63428.0,0.11]
[1727122285578,0.10438154,63429.0,63428.0,0.11]
[1727122285776,0.078824,63429.0,63428.0,0.11]
[1727122285979,0.10438154,63429.0,63428.0,0.11]
[1727122289481,0.14590549,63429.0,63428.0,0.11]
[1727122290771,0.10438154,63429.0,63428.0,0.11]
[1727122290971,0.19411434,63429.0,63428.0,0.11]
[1727122291178,0.24901171,63429.0,63428.0,0.11]
[1727122293179,0.078827,63427.0,63425.0,0.078829]
[1727122293386,0.17018771,63426.0,63425.0,0.078829]
[1727122294674,0.17018771,63426.0,63425.0,0.188829]
[1727122295083,0.24901571,63426.0,63425.0,0.188829]
[1727122295279,0.24901571,63426.0,63420.0,0.0037]
[1727122295485,0.17306271,63421.0,63419.0,0.0488]
[1727122295685,0.24902371,63420.0,63419.0,0.078836]
[1727122299098,0.078836,63420.0,63419.0,0.18031859]
[1727122300296,0.078836,63420.0,63419.0,0.20496826]
[1727122302989,0.078836,63420.0,63419.0,0.20496825]
[1727122306201,0.078836,63420.0,63419.0,0.078836]
[1727122306403,0.078836,63420.0,63419.0,0.10348566]
[1727122307093,0.078836,63420.0,63419.0,0.46428566]
[1727122307889,0.078831,63424.0,63423.0,0.078831]
[1727122308093,0.078831,63424.0,63423.0,0.23611519]
[1727122313896,0.078831,63424.0,63423.0,0.15728419]
[1727122314104,0.14525214,63424.0,63423.0,0.11]
[1727122314298,0.2467183,63424.0,63423.0,0.11]
[1727122315301,0.31832624,63424.0,63423.0,0.11]
[1727122315696,0.37234967,63424.0,63423.0,0.11]
[1727122315900,0.4197924,63424.0,63423.0,0.11]
[1727122317693,0.41970879,63424.0,63423.0,0.11]
[1727122319008,0.24663469,63424.0,63423.0,0.11]
[1727122319401,0.34947125,63424.0,63419.0,0.3608]
[1727122319708,0.157678,63417.0,63416.0,0.0037]
[1727122320002,0.157678,63417.0,63411.0,0.3608]
[1727122320003,0.07884,63416.0,63411.0,0.3608]
[1727122320219,0.34304369,63416.0,63411.0,0.3608]
[1727122320399,0.34304369,63416.0,63413.0,0.11]
[1727122320597,0.34304369,63416.0,63415.0,0.11236502]
[1727122320912,0.34089439,63416.0,63415.0,0.1370158]
[1727122321109,0.078837,63419.0,63415.0,0.1370158]
[1727122321110,0.078837,63419.0,63415.0,0.25526624]
[1727122321305,0.078831,63423.0,63420.0,0.078834]
[1727122321614,0.078831,63423.0,63422.0,0.15729608]
[1727122322200,0.078831,63423.0,63422.0,0.11]
[1727122323019,0.078831,63423.0,63422.0,0.188833]
[1727122323802,0.09441485,63427.0,63424.0,0.07883]
[1727122324003,0.17324085,63427.0,63426.0,0.11]
[1727122324312,0.19880003,63427.0,63426.0,0.11]
[1727122325513,0.20480003,63427.0,63426.0,0.11]
[1727122325904,0.20480003,63427.0,63426.0,0.111]
[1727122326518,0.20480003,63427.0,63426.0,0.112]
[1727122327498,0.03155918,63427.0,63426.0,0.190828]
[1727122327905,0.006,63427.0,63426.0,0.190828]
[1727122329215,0.07280189,63427.0,63426.0,0.190828]
[1727122329514,0.17521664,63427.0,63426.0,0.190828]
[1727122330320,0.21444003,63427.0,63426.0,0.190828]
[1727122330501,0.31685478,63427.0,63426.0,0.190828]
[1727122331016,0.17521664,63427.0,63426.0,0.190828]
[1727122332120,0.25404264,63427.0,63426.0,0.190828]
[1727122332418,0.39566276,63427.0,63426.0,0.190828]
[1727122333807,0.39566276,63427.0,63426.0,0.002]
[1727122334208,0.25404264,63427.0,63426.0,0.002]
[1727122335112,0.25404264,63427.0,63426.0,0.080828]
[1727122336323,0.084826,63427.0,63426.0,0.080828]
[1727122336512,0.084826,63427.0,63426.0,0.002]
[1727122338122,0.084826,63427.0,63426.0,0.04928341]
[1727122338607,0.084826,63427.0,63426.0,0.12811141]
[1727122339012,0.006,63427.0,63426.0,0.12811141]
[1727122341609,0.006,63427.0,63426.0,0.080828]
[1727122347323,0.006,63427.0,63426.0,0.12811141]
[1727122347628,0.006,63427.0,63426.0,0.23811141]
[1727122347930,0.006,63427.0,63426.0,0.190828]
[1727122350328,0.006,63427.0,63426.0,0.23811323]
[1727122350529,0.006,63427.0,63426.0,0.190828]
[1727122351031,0.006,63427.0,63426.0,0.23811411]
[1727122351232,0.17504929,63427.0,63426.0,0.190828]
[1727122354029,0.23013005,63427.0,63426.0,0.190828]
[1727122354226,0.332425,63427.0,63426.0,0.190828]
[1727122354428,0.17504929,63427.0,63426.0,0.190828]
[1727122358328,0.03155855,63427.0,63426.0,0.190828]
[1727122359126,0.006,63427.0,63426.0,0.190828]
[1727122359430,0.03155856,63427.0,63426.0,0.190828]
[1727122359629,0.006,63427.0,63426.0,0.190828]
[1727122359929,0.03155847,63427.0,63426.0,0.190828]
[1727122360335,0.006,63427.0,63426.0,0.190828]
[1727122362625,0.084826,63427.0,63426.0,0.080828]
[1727122362830,0.11038462,63427.0,63426.0,0.080828]
[1727122363238,0.084826,63427.0,63426.0,0.080828]
[1727122363627,0.11038444,63427.0,63426.0,0.080828]
[1727122364831,0.11038444,63427.0,63426.0,0.12814526]
[1727122365242,0.11038444,63427.0,63426.0,0.080828]
[1727122365432,0.11038444,63427.0,63426.0,0.002]
[1727122366537,0.15157309,63427.0,63426.0,0.002]
[1727122366741,0.3246721,63427.0,63426.0,0.002]
[1727122366932,0.25385029,63427.0,63426.0,0.002]
[1727122367127,0.25382859,63427.0,63426.0,0.002]
[1727122367344,0.4269276,63427.0,63426.0,0.002]
[1727122368053,0.25382859,63427.0,63426.0,0.002]
[1727122368625,0.25382859,63427.0,63426.0,0.080828]
[1727122369457,0.25382859,63427.0,63426.0,0.190828]
[1727122369740,0.37912661,63427.0,63426.0,0.190828]
[1727122369930,0.4269411,63427.0,63426.0,0.190828]
[1727122370126,0.25382859,63427.0,63426.0,0.190828]
[1727122373037,0.42694538,63427.0,63426.0,0.190828]
[1727122373546,0.11038382,63427.0,63426.0,0.190828]
[1727122373939,0.11038382,63427.0,63426.0,0.23813918]
[1727122374649,0.11038382,63427.0,63426.0,0.23813886]
[1727122375847,0.11038382,63427.0,63426.0,0.190828]
[1727122375848,0.084826,63427.0,63426.0,0.190828]
[1727122378751,0.006,63427.0,63426.0,0.190828]
[1727122378952,0.006,63427.0,63426.0,0.287228]
[1727122381339,0.1210329,63427.0,63426.0,0.287228]
[1727122381643,0.07296095,63427.0,63426.0,0.287228]
[1727122381952,0.1210329,63427.0,63426.0,0.287228]
[1727122382142,0.17577283,63427.0,63426.0,0.287228]
[1727122383234,0.17585204,63427.0,63426.0,0.287228]
[1727122384942,0.17578962,63427.0,63426.0,0.287228]
[1727122385745,0.17578962,63427.0,63426.0,0.3118754]
[1727122387646,0.17578962,63427.0,63426.0,0.2018754]
[1727122387850,0.17578962,63427.0,63426.0,0.3118754]
[1727122388246,0.17578962,63427.0,63426.0,0.2310474]
[1727122388447,0.006,63427.0,63426.0,0.24661647]
[1727122388653,0.084826,63427.0,63426.0,0.27654447]
[1727122388849,0.084826,63427.0,63426.0,0.2134754]
[1727122391656,0.084826,63427.0,63426.0,0.188828]
[1727122395863,0.084826,63427.0,63426.0,0.21347561]
[1727122396064,0.084826,63427.0,63426.0,0.188828]
[1727122396481,0.084826,63427.0,63426.0,0.25189707]
[1727122403565,0.19490971,63427.0,63426.0,0.188828]
[1727122403762,0.2608655,63427.0,63426.0,0.188828]
[1727122404360,0.26087072,63427.0,63426.0,0.188828]
[1727122405273,0.15078701,63427.0,63426.0,0.188828]
[1727122406371,0.19772741,63427.0,63426.0,0.188828]
[1727122406968,0.19499408,63427.0,63426.0,0.188828]
[1727122407163,0.15078701,63427.0,63426.0,0.188828]
[1727122407371,0.19774171,63427.0,63426.0,0.188828]
[1727122407673,0.15078701,63427.0,63426.0,0.188828]
[1727122408074,0.19774612,63427.0,63426.0,0.188828]
[1727122410477,0.15078701,63427.0,63426.0,0.188828]
[1727122411564,0.084826,63427.0,63426.0,0.29071707]
[1727122413276,0.524452,63427.0,63426.0,0.10188907]
[1727122413782,0.524452,63427.0,63426.0,0.07885205]
[1727122414480,0.078828,63426.0,63425.0,0.07885205]
[1727122414775,0.188828,63426.0,63425.0,0.07885205]
[1727122415566,0.188828,63426.0,63424.0,0.07885205]
[1727122415567,0.078829,63425.0,63424.0,0.07885205]
[1727122415877,0.078829,63425.0,63424.0,0.18094449]
[1727122416270,0.070109,63425.0,63424.0,0.18094449]
[1727122416673,0.069109,63425.0,63424.0,0.18094449]
[1727122417275,0.073109,63425.0,63424.0,0.18094449]
[1727122417474,0.073109,63425.0,63424.0,0.07885205]
[1727122417879,0.07883,63424.0,63423.0,0.07885205]
[1727122419382,0.08383,63424.0,63423.0,0.07885205]
[1727122419675,0.078831,63423.0,63422.0,0.07885205]
[1727122419881,0.078831,63423.0,63422.0,0.18088579]
[1727122420880,0.082831,63423.0,63422.0,0.18088579]
[1727122422681,0.082831,63423.0,63422.0,0.07885205]
[1727122424489,0.082831,63423.0,63422.0,0.18081606]
[1727122426280,0.082831,63423.0,63422.0,0.25964906]
[1727122426476,0.1772779,63423.0,63422.0,0.188833]
[1727122426681,0.20283804,63423.0,63422.0,0.188833]
[1727122430587,0.10839114,63423.0,63422.0,0.188833]
[1727122433478,0.20283774,63423.0,63422.0,0.188833]
[1727122433793,0.082831,63423.0,63422.0,0.29083617]
[1727122438497,0.004,63423.0,63422.0,0.65163617]
[1727122438702,0.004,63423.0,63422.0,0.79768948]
[1727122438994,0.078821,63431.0,63429.0,0.188824]
[1727122439200,0.078821,63431.0,63430.0,0.078823]
[1727122439388,0.3608,63433.0,63430.0,0.078823]
[1727122439389,0.3608,63433.0,63432.0,0.07882]
[1727122439693,0.3608,63433.0,63432.0,0.36928492]
[1727122440889,0.3658,63433.0,63432.0,0.37028492]
[1727122441399,0.083819,63433.0,63432.0,0.29150889]
[1727122441588,0.083819,63433.0,63432.0,0.18982]
[1727122441589,0.14996332,63433.0,63432.0,0.18982]
[1727122442090,0.14996332,63433.0,63432.0,0.08082]
[1727122443195,0.14996332,63433.0,63432.0,0.002]
[1727122443393,0.25996332,63433.0,63432.0,0.002]
[1727122443799,0.193819,63433.0,63432.0,0.002]
[1727122444393,0.25982052,63433.0,63432.0,0.002]
[1727122445403,0.23428982,63433.0,63432.0,0.002]
[1727122445594,0.2598471,63433.0,63432.0,0.002]
[1727122445788,0.30683666,63433.0,63432.0,0.002]
[1727122446400,0.2598471,63433.0,63432.0,0.002]
[1727122446602,0.36993888,63433.0,63432.0,0.002]
[1727122447100,0.25993888,63433.0,63432.0,0.002]
[1727122448891,0.1498471,63433.0,63432.0,0.002]
[1727122449105,0.083819,63433.0,63432.0,0.002]
[1727122450702,0.193819,63433.0,63432.0,0.002]
[1727122450909,0.723819,63433.0,63432.0,0.002]
[1727122453192,0.772219,63433.0,63432.0,0.002]
[1727122455005,0.662219,63433.0,63432.0,0.002]
[1727122456306,0.68777654,63433.0,63432.0,0.002]
[1727122456502,0.72844324,63433.0,63432.0,0.002]
[1727122457305,0.72844324,63433.0,63432.0,0.001]
[1727122457502,0.72844324,63433.0,63432.0,0.002]
[1727122458210,0.72844051,63433.0,63432.0,0.002]
[1727122458421,0.72444051,63433.0,63432.0,0.002]
[1727122459513,0.83453229,63433.0,63432.0,0.002]
[1727122459903,1.19533229,63433.0,63432.0,0.002]
[1727122460915,1.19533229,63433.0,63432.0,0.01077]
[1727122462417,1.08524051,63433.0,63432.0,0.01077]
[1727122463016,1.08835348,63433.0,63432.0,0.01077]